[Event "21th Rochefort Chess Festival - Masters"]
[Site "Rochefort, France"]
[Date "2023.02.15"]
[Round "7.1"]
[White "Ghosh, Diptayan"]
[Black "Maksimenko, Andrei"]
[Result "1/2-1/2"]
[TimeControl "1h30 + [30'']"]
[WhiteElo "2553"]
[BlackElo "2426"]

1. Nf3 {[%clk 01:26:19]} d5 {[%clk 01:30:49]} 2. c4 {[%clk 01:26:39]} c6 {[%clk
01:29:27]} 3. e3 {[%clk 01:26:58]} Nf6 {[%clk 01:29:29]} 4. Nc3 {[%clk
01:27:23]} {[%emt 00:00:03]} Nbd7 {[%clk 01:29:51]} {[%emt 00:00:07]} 5. d4
{[%clk 01:27:41]} {[%emt 00:00:12]} e6 {[%clk 01:30:09]} {[%emt 00:00:12]} 6.
Be2 {[%clk 01:27:51]} {[%emt 00:00:20]} Bd6 {[%clk 01:30:28]} {[%emt 00:00:11]}
7. O-O {[%clk 01:28:05]} {[%emt 00:00:16]} O-O {[%clk 01:30:40]} {[%emt
00:00:17]} 8. b3 {[%clk 01:28:31]} {[%emt 00:00:04]} b6 {[%clk 01:30:55]}
{[%emt 00:00:16]} 9. Bb2 {[%clk 01:28:56]} {[%emt 00:00:05]} Bb7 {[%clk
01:31:20]} {[%emt 00:00:04]} 10. Qc2 {[%clk 01:29:22]} {[%emt 00:00:04]} Re8
{[%clk 01:31:40]} {[%emt 00:00:10]} 11. Rad1 {[%clk 01:29:02]} {[%emt
00:00:51]} Qe7 {[%clk 01:32:04]} {[%emt 00:00:06]} 12. Rfe1 {[%clk 01:29:22]}
{[%emt 00:00:10]} Rad8 {[%clk 01:32:27]} {[%emt 00:00:06]} 13. h3 {[%clk
01:25:43]} {[%emt 00:04:09]} a6 {[%clk 01:25:27]} {[%emt 00:07:31]} 14. Ba1
{[%clk 01:20:41]} {[%emt 00:05:31]} h6 {[%clk 01:16:15]} {[%emt 00:09:42]} 15.
e4 {[%clk 01:08:54]} {[%emt 00:12:18]} dxe4 {[%clk 01:13:34]} {[%emt 00:03:12]}
16. Nxe4 {[%clk 01:09:15]} {[%emt 00:00:08]} Nxe4 {[%clk 01:13:22]} {[%emt
00:00:42]} 17. Qxe4 {[%clk 01:09:40]} {[%emt 00:00:04]} Bb4 {[%clk 01:09:57]}
{[%emt 00:03:56]} 18. Rf1 {[%clk 01:08:17]} {[%emt 00:01:54]} Nf6 {[%clk
01:10:04]} {[%emt 00:00:22]} 19. Qe3 {[%clk 01:05:31]} {[%emt 00:03:16]} c5
{[%clk 01:09:59]} {[%emt 00:00:36]} 20. Ne5 {[%clk 01:03:43]} {[%emt 00:02:18]}
cxd4 {[%clk 01:01:52]} {[%emt 00:08:37]} 21. Bxd4 {[%clk 01:03:00]} {[%emt
00:01:13]} Bc5 {[%clk 01:01:17]} {[%emt 00:01:05]} 22. Bxc5 {[%clk 01:01:14]}
{[%emt 00:02:16]} Qxc5 {[%clk 01:01:34]} {[%emt 00:00:12]} 23. Qxc5 {[%clk
00:43:28]} {[%emt 00:18:16]} bxc5 {[%clk 01:01:56]} {[%emt 00:00:08]} 24. f3
{[%clk 00:42:15]} {[%emt 00:01:44]} 1/2-1/2

[Event "21th Rochefort Chess Festival - Masters"]
[Site "Rochefort, France"]
[Date "2023.02.15"]
[Round "7.2"]
[White "Larkin, Vladyslav"]
[Black "Ghazarian, Kirk"]
[Result "1/2-1/2"]
[TimeControl "1h30 + [30'']"]
[WhiteElo "2441"]
[BlackElo "2471"]

1. d4 {[%clk 01:25:39]} Nf6 {[%clk 01:30:03]} 2. Bf4 {[%clk 01:25:55]} d5
{[%clk 01:30:20]} 3. e3 {[%clk 01:26:19]} e6 {[%clk 01:30:33]} 4. Nd2 {[%clk
01:26:21]} Bd6 {[%clk 01:30:54]} {[%emt 00:00:03]} 5. Bg3 {[%clk 01:26:46]}
{[%emt 00:00:07]} O-O {[%clk 01:30:27]} {[%emt 00:00:56]} 6. Bd3 {[%clk
01:26:38]} {[%emt 00:00:37]} c5 {[%clk 01:30:07]} {[%emt 00:00:51]} 7. c3
{[%clk 01:27:02]} {[%emt 00:00:06]} Qc7 {[%clk 01:29:51]} {[%emt 00:00:46]} 8.
Bh4 {[%clk 01:15:54]} {[%emt 00:11:37]} Nbd7 {[%clk 01:28:15]} {[%emt
00:02:07]} 9. f4 {[%clk 01:11:37]} {[%emt 00:04:47]} c4 {[%clk 01:21:51]}
{[%emt 00:06:54]} 10. Bc2 {[%clk 01:11:42]} {[%emt 00:00:25]} b5 {[%clk
01:22:04]} {[%emt 00:00:17]} 11. a3 {[%clk 01:09:21]} {[%emt 00:02:51]} Bb7
{[%clk 01:22:11]} {[%emt 00:00:23]} 12. Qf3 {[%clk 01:09:47]} {[%emt 00:00:04]}
a5 {[%clk 01:14:02]} {[%emt 00:08:40]} 13. Ne2 {[%clk 01:07:18]} {[%emt
00:02:58]} b4 {[%clk 01:11:25]} {[%emt 00:03:08]} 14. Bxf6 {[%clk 01:00:25]}
{[%emt 00:07:22]} Nxf6 {[%clk 01:11:07]} {[%emt 00:00:47]} 15. O-O {[%clk
00:56:22]} {[%emt 00:04:35]} bxa3 {[%clk 00:56:58]} {[%emt 00:14:39]} 16. bxa3
{[%clk 00:56:46]} {[%emt 00:00:06]} Bc6 {[%clk 00:57:10]} {[%emt 00:00:17]} 17.
Ng3 {[%clk 00:47:28]} {[%emt 00:09:48]} Rab8 {[%clk 00:53:46]} {[%emt
00:03:55]} 18. Ra2 {[%clk 00:47:53]} {[%emt 00:00:06]} a4 {[%clk 00:49:32]}
{[%emt 00:04:45]} 19. e4 {[%clk 00:43:28]} {[%emt 00:04:54]} dxe4 {[%clk
00:49:23]} {[%emt 00:00:38]} 20. Ngxe4 {[%clk 00:43:49]} {[%emt 00:00:10]} Nxe4
{[%clk 00:48:19]} {[%emt 00:01:34]} 21. Bxe4 {[%clk 00:44:14]} {[%emt
00:00:05]} Bxe4 {[%clk 00:45:28]} {[%emt 00:03:21]} 22. Nxe4 {[%clk 00:44:14]}
{[%emt 00:00:29]} Rb3 {[%clk 00:43:17]} {[%emt 00:02:41]} 23. g3 {[%clk
00:44:16]} {[%emt 00:00:29]} Bxa3 {[%clk 00:24:48]} {[%emt 00:18:59]} 24. f5
{[%clk 00:33:17]} {[%emt 00:11:28]} exf5 {[%clk 00:24:49]} {[%emt 00:00:29]} 25.
Qxf5 {[%clk 00:33:42]} {[%emt 00:00:04]} Bb2 {[%clk 00:19:36]} {[%emt
00:05:43]} 26. Rxa4 {[%clk 00:29:39]} {[%emt 00:04:33]} Bxc3 {[%clk 00:18:07]}
{[%emt 00:01:59]} 27. Qd5 {[%clk 00:30:03]} {[%emt 00:00:07]} Rd8 {[%clk
00:14:18]} {[%emt 00:04:19]} 28. Rxc4 {[%clk 00:30:20]} {[%emt 00:00:13]} Rxd5
{[%clk 00:14:09]} {[%emt 00:00:39]} 29. Rxc7 {[%clk 00:30:46]} {[%emt
00:00:04]} Bxd4+ {[%clk 00:14:26]} {[%emt 00:00:12]} 30. Kh1 {[%clk 00:31:15]}
{[%emt 00:00:02]} f6 {[%clk 00:09:31]} {[%emt 00:05:26]} 31. Rd1 {[%clk
00:30:45]} {[%emt 00:00:59]} Rbb5 {[%clk 00:07:42]} {[%emt 00:02:18]} 32. Nc3
{[%clk 00:29:17]} {[%emt 00:01:58]} Bxc3 {[%clk 00:07:54]} {[%emt 00:00:19]} 33.
Rxd5 {[%clk 00:29:44]} {[%emt 00:00:03]} Rxd5 {[%clk 00:08:15]} {[%emt
00:00:10]} 34. Rxc3 {[%clk 00:30:08]} {[%emt 00:00:05]} Rd2 {[%clk 00:08:41]}
{[%emt 00:00:03]} 35. Rc7 {[%clk 00:30:07]} {[%emt 00:00:31]} h6 {[%clk
00:08:51]} {[%emt 00:00:20]} 36. Kg1 {[%clk 00:28:05]} {[%emt 00:02:32]} Kh7
{[%clk 00:09:13]} {[%emt 00:00:09]} 1/2-1/2

[Event "21th Rochefort Chess Festival - Masters"]
[Site "Rochefort, France"]
[Date "2023.02.15"]
[Round "7.4"]
[White "Ilamparthi A R"]
[Black "Sasikiran, Krishnan"]
[Result "1/2-1/2"]
[TimeControl "1h30 + [30'']"]
[WhiteElo "2385"]
[BlackElo "2619"]

1. Nf3 {[%clk 01:30:57]} d5 {[%clk 01:30:17]} 2. g3 {[%clk 01:31:20]} Nf6
{[%clk 01:30:14]} 3. Bg2 {[%clk 01:31:39]} c6 {[%clk 01:30:32]} 4. O-O {[%clk
01:32:02]} Bg4 {[%clk 01:30:50]} 5. d3 {[%clk 01:32:22]} Nbd7 {[%clk 01:29:15]}
6. Nbd2 {[%clk 01:32:44]} e5 {[%clk 01:25:22]} {[%emt 00:01:28]} 7. h3 {[%clk
01:33:03]} {[%emt 00:00:11]} Bxf3 {[%clk 01:23:24]} {[%emt 00:02:28]} 8. Bxf3
{[%clk 01:32:56]} {[%emt 00:00:37]} h5 {[%clk 01:19:53]} {[%emt 00:04:02]} 9.
h4 {[%clk 01:23:43]} {[%emt 00:09:43]} g6 {[%clk 01:11:06]} {[%emt 00:09:17]}
10. e4 {[%clk 01:14:23]} {[%emt 00:09:50]} Bg7 {[%clk 01:08:37]} {[%emt
00:02:59]} 11. Qe2 {[%clk 01:09:31]} {[%emt 00:05:22]} O-O {[%clk 01:03:10]}
{[%emt 00:05:57]} 12. Bg2 {[%clk 01:07:17]} {[%emt 00:02:44]} Qb6 {[%clk
00:59:47]} {[%emt 00:03:52]} 13. Nf3 {[%clk 01:04:35]} {[%emt 00:03:13]} Qa6
{[%clk 00:50:29]} {[%emt 00:09:49]} 14. Ng5 {[%clk 00:59:35]} {[%emt 00:05:30]}
dxe4 {[%clk 00:45:08]} {[%emt 00:05:51]} 15. Nxe4 {[%clk 00:59:40]} {[%emt
00:00:25]} Nxe4 {[%clk 00:44:01]} {[%emt 00:01:37]} 16. Qxe4 {[%clk 00:57:03]}
{[%emt 00:03:06]} Rfe8 {[%clk 00:39:09]} {[%emt 00:05:21]} 17. Bg5 {[%clk
00:54:37]} {[%emt 00:02:57]} Nc5 {[%clk 00:35:23]} {[%emt 00:04:16]} 18. Qb4
{[%clk 00:53:16]} {[%emt 00:01:51]} Bf8 {[%clk 00:32:42]} {[%emt 00:03:12]} 19.
Qc3 {[%clk 00:51:31]} {[%emt 00:02:15]} Qb5 {[%clk 00:27:21]} {[%emt 00:05:51]}
20. Rfe1 {[%clk 00:47:25]} {[%emt 00:04:36]} Bg7 {[%clk 00:24:14]} {[%emt
00:03:37]} 21. Be3 {[%clk 00:39:44]} {[%emt 00:08:11]} Na6 {[%clk 00:23:40]}
{[%emt 00:01:03]} 22. Qb3 {[%clk 00:35:35]} {[%emt 00:04:40]} Nc7 {[%clk
00:18:21]} {[%emt 00:05:48]} 23. Qxb5 {[%clk 00:33:54]} {[%emt 00:02:11]} Nxb5
{[%clk 00:18:48]} {[%emt 00:00:03]} 24. a4 {[%clk 00:32:37]} {[%emt 00:01:48]}
Nc7 {[%clk 00:17:19]} {[%emt 00:01:59]} 25. a5 {[%clk 00:27:57]} {[%emt
00:05:10]} a6 {[%clk 00:16:52]} {[%emt 00:00:57]} 26. Ra4 {[%clk 00:25:51]}
{[%emt 00:02:36]} Nd5 {[%clk 00:15:04]} {[%emt 00:02:18]} 27. Bxd5 {[%clk
00:22:05]} {[%emt 00:04:16]} cxd5 {[%clk 00:15:30]} {[%emt 00:00:04]} 28. Rb4
{[%clk 00:19:19]} {[%emt 00:03:16]} Re7 {[%clk 00:13:45]} {[%emt 00:02:14]} 29.
c4 {[%clk 00:17:10]} {[%emt 00:02:40]} Rd7 {[%clk 00:08:25]} {[%emt 00:05:50]}
30. Rb6 {[%clk 00:13:15]} {[%emt 00:04:25]} Rc8 {[%clk 00:06:19]} {[%emt
00:02:36]} 31. cxd5 {[%clk 00:07:19]} {[%emt 00:06:26]} Rxd5 {[%clk 00:05:56]}
{[%emt 00:00:52]} 32. Rxb7 {[%clk 00:06:34]} {[%emt 00:01:14]} Rxa5 {[%clk
00:06:00]} {[%emt 00:00:26]} 33. b4 {[%clk 00:05:47]} {[%emt 00:01:18]} Rb5
{[%clk 00:05:03]} {[%emt 00:01:27]} 34. Rxb5 {[%clk 00:04:47]} {[%emt
00:01:30]} axb5 {[%clk 00:05:29]} {[%emt 00:00:04]} 35. Bc5 {[%clk 00:05:06]}
{[%emt 00:00:11]} Rd8 {[%clk 00:05:31]} {[%emt 00:00:28]} 36. Ra1 {[%clk
00:01:21]} {[%emt 00:04:16]} e4 {[%clk 00:05:22]} {[%emt 00:00:39]} 37. d4
{[%clk 00:01:46]} {[%emt 00:00:05]} Bxd4 {[%clk 00:05:45]} {[%emt 00:00:06]} 38.
Ra5 {[%clk 00:02:02]} {[%emt 00:00:14]} Bxc5 {[%clk 00:04:09]} {[%emt
00:02:07]} 39. bxc5 {[%clk 00:02:31]} {[%emt 00:00:01]} Rd1+ {[%clk 00:03:51]}
{[%emt 00:00:47]} 40. Kg2 {[%clk 00:02:53]} {[%emt 00:00:08]} Rb1 {[%clk
00:03:47]} {[%emt 00:00:34]} 41. c6 {[%clk 00:02:36]} {[%emt 00:00:47]} Kg7
{[%clk 00:01:57]} {[%emt 00:02:19]} 42. c7 {[%clk 00:01:56]} {[%emt 00:01:11]}
Rc1 {[%clk 00:02:22]} {[%emt 00:00:05]} 43. Rxb5 {[%clk 00:02:23]} {[%emt
00:00:04]} Rxc7 {[%clk 00:02:46]} {[%emt 00:00:05]} 44. Re5 {[%clk 00:02:38]}
{[%emt 00:00:15]} Rc4 {[%clk 00:02:06]} {[%emt 00:01:10]} 45. Kf1 {[%clk
00:02:00]} {[%emt 00:01:07]} Kf6 {[%clk 00:29:32]} {[%emt 00:03:03]} 46. Ra5
{[%clk 00:32:19]} {[%emt 00:00:12]} Rc2 {[%clk 00:28:31]} {[%emt 00:01:30]} 47.
Ke1 {[%clk 00:29:21]} {[%emt 00:03:28]} Ke6 {[%clk 00:26:20]} {[%emt 00:02:40]}
48. Kf1 {[%clk 00:28:48]} {[%emt 00:01:03]} Rd2 {[%clk 00:23:36]} {[%emt
00:03:15]} 49. Rb5 {[%clk 00:28:42]} {[%emt 00:00:36]} Ra2 {[%clk 00:21:52]}
{[%emt 00:02:14]} 50. Ke1 {[%clk 00:27:51]} {[%emt 00:01:22]} Rc2 {[%clk
00:19:54]} {[%emt 00:02:28]} 51. Ra5 {[%clk 00:28:07]} {[%emt 00:00:14]} Rb2
{[%clk 00:19:19]} {[%emt 00:01:05]} 52. Rc5 {[%clk 00:27:45]} {[%emt 00:00:52]}
f6 {[%clk 00:14:54]} {[%emt 00:04:55]} 53. Kf1 {[%clk 00:27:52]} {[%emt
00:00:24]} Rd2 {[%clk 00:14:47]} {[%emt 00:00:37]} 54. Ra5 {[%clk 00:27:52]}
{[%emt 00:00:30]} Rd5 {[%clk 00:14:39]} {[%emt 00:00:38]} 55. Ra6+ {[%clk
00:25:36]} {[%emt 00:02:46]} Kf5 {[%clk 00:13:59]} {[%emt 00:01:10]} 56. Kg2
{[%clk 00:24:56]} {[%emt 00:01:10]} Rd2 {[%clk 00:13:30]} {[%emt 00:00:59]} 57.
Ra5+ {[%clk 00:21:12]} {[%emt 00:04:15]} Ke6 {[%clk 00:13:44]} {[%emt
00:00:15]} 58. Kf1 {[%clk 00:21:33]} {[%emt 00:00:09]} Rd5 {[%clk 00:12:54]}
{[%emt 00:01:20]} 59. Ra6+ {[%clk 00:22:02]} {[%emt 00:00:02]} Kf5 {[%clk
00:12:46]} {[%emt 00:00:37]} 60. Kg2 {[%clk 00:22:30]} {[%emt 00:00:02]} Re5
{[%clk 00:12:42]} {[%emt 00:00:33]} 61. Rb6 {[%clk 00:21:49]} {[%emt 00:01:12]}
e3 {[%clk 00:11:17]} {[%emt 00:01:54]} 62. fxe3 {[%clk 00:22:06]} {[%emt
00:00:13]} Rxe3 {[%clk 00:11:43]} {[%emt 00:00:04]} 63. Rb5+ {[%clk 00:22:27]}
{[%emt 00:00:10]} Re5 {[%clk 00:11:31]} {[%emt 00:00:42]} 64. Rb6 {[%clk
00:22:45]} {[%emt 00:00:12]} Rd5 {[%clk 00:10:31]} {[%emt 00:01:30]} 65. Kf3
{[%clk 00:22:31]} {[%emt 00:00:45]} Rd3+ {[%clk 00:10:21]} {[%emt 00:00:40]} 66.
Kg2 {[%clk 00:22:52]} {[%emt 00:00:09]} Re3 {[%clk 00:10:23]} {[%emt 00:00:28]}
67. Rb5+ {[%clk 00:23:14]} {[%emt 00:00:08]} Re5 {[%clk 00:10:45]} {[%emt
00:00:07]} 68. Rb6 {[%clk 00:23:38]} {[%emt 00:00:07]} Rc5 {[%clk 00:11:03]}
{[%emt 00:00:12]} 69. Kf3 {[%clk 00:23:48]} {[%emt 00:00:20]} Ke5 {[%clk
00:11:28]} {[%emt 00:00:05]} 70. Ra6 {[%clk 00:23:01]} {[%emt 00:01:17]} Rc3+
{[%clk 00:11:27]} {[%emt 00:00:31]} 71. Kg2 {[%clk 00:23:24]} {[%emt 00:00:07]}
Rd3 {[%clk 00:11:50]} {[%emt 00:00:07]} 72. Ra5+ {[%clk 00:23:01]} {[%emt
00:00:52]} Ke4 {[%clk 00:11:29]} {[%emt 00:00:50]} 73. Ra6 {[%clk 00:22:45]}
{[%emt 00:00:47]} Rd2+ {[%clk 00:11:19]} {[%emt 00:00:41]} 74. Kh3 {[%clk
00:20:57]} {[%emt 00:02:17]} g5 {[%clk 00:07:11]} {[%emt 00:04:38]} 75. hxg5
{[%clk 00:21:18]} {[%emt 00:00:09]} fxg5 {[%clk 00:07:37]} {[%emt 00:00:04]} 76.
Ra4+ {[%clk 00:21:24]} {[%emt 00:00:24]} Ke3 {[%clk 00:05:29]} {[%emt
00:02:38]} 77. Ra3+ {[%clk 00:21:41]} {[%emt 00:00:14]} Ke4 {[%clk 00:05:31]}
{[%emt 00:00:28]} 78. Ra4+ {[%clk 00:22:10]} {[%emt 00:00:02]} Ke5 {[%clk
00:04:25]} {[%emt 00:01:36]} 79. Ra5+ {[%clk 00:22:24]} {[%emt 00:00:16]} Rd5
{[%clk 00:04:14]} {[%emt 00:00:40]} 80. Ra4 {[%clk 00:22:35]} {[%emt 00:00:19]}
Rb5 {[%clk 00:04:30]} {[%emt 00:00:14]} 81. Rc4 {[%clk 00:21:33]} {[%emt
00:01:33]} Rd5 {[%clk 00:03:55]} {[%emt 00:01:04]} 82. Ra4 {[%clk 00:22:01]}
{[%emt 00:00:02]} Ke6 {[%clk 00:04:15]} {[%emt 00:00:11]} 83. Ra6+ {[%clk
00:21:58]} {[%emt 00:00:33]} Rd6 {[%clk 00:04:40]} {[%emt 00:00:04]} 84. Ra5
{[%clk 00:22:14]} {[%emt 00:00:14]} Kf6 {[%clk 00:05:05]} {[%emt 00:00:05]} 85.
Rb5 {[%clk 00:22:20]} {[%emt 00:00:24]} Re6 {[%clk 00:05:13]} {[%emt 00:00:21]}
86. Ra5 {[%clk 00:22:40]} {[%emt 00:00:10]} Kg6 {[%clk 00:03:17]} {[%emt
00:02:26]} 87. Rb5 {[%clk 00:22:55]} {[%emt 00:00:15]} Re2 {[%clk 00:03:27]}
{[%emt 00:00:20]} 88. Rb6+ {[%clk 00:23:18]} {[%emt 00:00:08]} Kg7 {[%clk
00:03:04]} {[%emt 00:00:53]} 89. Rb7+ {[%clk 00:23:37]} {[%emt 00:00:11]} Kf6
{[%clk 00:03:30]} {[%emt 00:00:04]} 90. Rb6+ {[%clk 00:24:01]} {[%emt
00:00:06]} Re6 {[%clk 00:03:02]} {[%emt 00:00:58]} 91. Rb5 {[%clk 00:24:25]}
{[%emt 00:00:06]} Rd6 {[%clk 00:03:22]} {[%emt 00:00:10]} 92. Ra5 {[%clk
00:24:49]} {[%emt 00:00:06]} Rd2 {[%clk 00:03:22]} {[%emt 00:00:30]} 93. Ra6+
{[%clk 00:25:14]} {[%emt 00:00:06]} Ke5 {[%clk 00:03:49]} {[%emt 00:00:03]} 94.
Ra5+ {[%clk 00:24:38]} {[%emt 00:01:06]} Rd5 {[%clk 00:04:09]} {[%emt
00:00:09]} 95. Ra4 {[%clk 00:25:02]} {[%emt 00:00:06]} Rb5 {[%clk 00:04:11]}
{[%emt 00:00:28]} 96. Rc4 {[%clk 00:25:17]} {[%emt 00:00:15]} Kf5 {[%clk
00:03:56]} {[%emt 00:00:45]} 97. Ra4 {[%clk 00:25:26]} {[%emt 00:00:21]} Re5
{[%clk 00:04:04]} {[%emt 00:00:22]} 98. Rb4 {[%clk 00:25:49]} {[%emt 00:00:07]}
Re4 {[%clk 00:03:45]} {[%emt 00:00:49]} 99. Rb5+ {[%clk 00:26:14]} {[%emt
00:00:06]} Kf6 {[%clk 00:04:10]} {[%emt 00:00:04]} 100. Rb6+ {[%clk 00:26:40]}
{[%emt 00:00:04]} Re6 {[%clk 00:04:24]} {[%emt 00:00:16]} 101. Rb5 {[%clk
00:27:05]} {[%emt 00:00:05]} Re2 {[%clk 00:03:38]} {[%emt 00:01:16]} 102. Rb6+
{[%clk 00:27:34]} {[%emt 00:00:02]} Kf5 {[%clk 00:03:22]} {[%emt 00:00:45]} 103.
Rb5+ {[%clk 00:28:00]} {[%emt 00:00:05]} Kf6 {[%clk 00:03:42]} {[%emt
00:00:10]} 104. Rb6+ {[%clk 00:28:29]} {[%emt 00:00:01]} Re6 {[%clk 00:04:07]}
{[%emt 00:00:05]} 105. Rb5 {[%clk 00:28:54]} {[%emt 00:00:05]} Ra6 {[%clk
00:04:31]} {[%emt 00:00:05]} 106. Rc5 {[%clk 00:29:18]} {[%emt 00:00:05]} Ra3
{[%clk 00:04:54]} {[%emt 00:00:07]} 107. Rc6+ {[%clk 00:29:40]} {[%emt
00:00:08]} Kf7 {[%clk 00:05:13]} {[%emt 00:00:11]} 108. Rc5 {[%clk 00:29:42]}
{[%emt 00:00:29]} h4 {[%clk 00:04:55]} {[%emt 00:00:48]} 109. Rxg5 {[%clk
00:30:10]} {[%emt 00:00:03]} Rxg3+ {[%clk 00:05:20]} {[%emt 00:00:04]} 110.
Rxg3 {[%clk 00:30:37]} {[%emt 00:00:03]} hxg3 {[%clk 00:05:47]} {[%emt
00:00:03]} 111. Kxg3 {[%clk 00:31:01]} {[%emt 00:00:06]} 1/2-1/2

[Event "21th Rochefort Chess Festival - Masters"]
[Site "Rochefort, France"]
[Date "2023.02.15"]
[Round "7.5"]
[White "Viani Antonio Dcunha"]
[Black "Nikolov, Momchil"]
[Result "1/2-1/2"]
[TimeControl "1h30 + [30'']"]
[WhiteElo "2377"]
[BlackElo "2480"]

1. e4 {[%clk 01:30:35]} c5 {[%clk 01:27:58]} 2. Nf3 {[%clk 01:30:51]} d6 {[%clk
01:28:04]} 3. d4 {[%clk 01:31:00]} cxd4 4. Nxd4 {[%clk 01:31:19]} Nf6 {[%clk
01:28:44]} 5. Nc3 {[%clk 01:31:41]} a6 {[%clk 01:29:07]} 6. Be3 {[%clk
01:31:06]} e5 {[%clk 01:29:23]} 7. Nb3 {[%clk 01:31:23]} Be6 {[%clk 01:29:41]}
8. f3 {[%clk 01:31:33]} h5 {[%clk 01:29:58]} 9. Qd2 {[%clk 01:30:52]} {[%emt
00:01:07]} Nbd7 {[%clk 01:30:09]} {[%emt 00:00:18]} 10. Nd5 {[%clk 01:24:19]}
{[%emt 00:07:04]} Bxd5 {[%clk 01:30:03]} {[%emt 00:00:36]} 11. exd5 {[%clk
01:24:42]} {[%emt 00:00:07]} g6 {[%clk 01:30:26]} {[%emt 00:00:06]} 12. Na5
{[%clk 01:22:42]} {[%emt 00:02:30]} Qc7 {[%clk 01:30:30]} {[%emt 00:00:26]} 13.
Be2 {[%clk 01:22:32]} {[%emt 00:00:40]} Bg7 {[%clk 01:28:06]} {[%emt 00:02:53]}
14. O-O {[%clk 01:22:11]} {[%emt 00:00:51]} e4 {[%clk 01:27:53]} {[%emt
00:00:43]} 15. c4 {[%clk 01:14:36]} {[%emt 00:08:06]} exf3 {[%clk 01:27:44]}
{[%emt 00:00:38]} 16. gxf3 {[%clk 01:14:29]} {[%emt 00:00:37]} O-O {[%clk
01:27:53]} {[%emt 00:00:21]} 17. b4 {[%clk 01:11:06]} {[%emt 00:03:54]} Rfe8
{[%clk 01:27:45]} {[%emt 00:00:37]} 18. Rac1 {[%clk 01:04:35]} {[%emt
00:07:01]} Rxe3 {[%clk 01:27:21]} {[%emt 00:00:53]} 19. Qxe3 {[%clk 01:04:45]}
{[%emt 00:00:21]} Re8 {[%clk 01:27:42]} {[%emt 00:00:09]} 20. Qf2 {[%clk
00:54:29]} {[%emt 00:10:46]} Bh6 {[%clk 01:23:39]} {[%emt 00:04:32]} 21. f4
{[%clk 00:51:16]} {[%emt 00:03:44]} Ne4 {[%clk 01:23:21]} {[%emt 00:00:47]} 22.
Qe3 {[%clk 00:46:30]} {[%emt 00:05:16]} Nef6 {[%clk 01:20:05]} {[%emt
00:03:46]} 23. Qf2 {[%clk 00:46:42]} {[%emt 00:00:18]} Ne4 {[%clk 01:18:02]}
{[%emt 00:02:32]} 24. Qe3 {[%clk 00:40:17]} {[%emt 00:06:56]} Nef6 {[%clk
00:59:26]} {[%emt 00:19:05]} 25. Qf2 {[%emt 00:01:21]} Ne4 {[%emt 00:00:22]} 26.
Qe3 {[%emt 00:00:03]} Ndf6 {[%emt 00:00:01]} 27. Kg2 {[%emt 00:00:16]} Ng3
{[%emt 00:00:04]} 28. Qxg3 {[%emt 00:00:05]} Rxe2+ {[%emt 00:00:02]} 29. Kh1
{[%emt 00:00:01]} Qe7 {[%emt 00:00:01]} 30. Qf3 {[%emt 00:00:05]} Ng4 {[%emt
00:00:07]} 31. Qg3 {[%emt 00:00:05]} Nf6 {[%emt 00:00:03]} 32. Rce1 {[%emt
00:00:08]} Qe4+ {[%emt 00:00:03]} 33. Kg1 {[%emt 00:00:02]} Qd4+ {[%emt
00:00:23]} 34. Kh1 {[%emt 00:00:02]} Bxf4 {[%emt 00:00:14]} 35. Qxf4 {[%emt
00:00:12]} 1/2-1/2



[ePGN "0.1;DGT LiveChess/2.2.5"]